lending/lending_fUSD_20241120
["ID","MTS","AMOUNT","RATE_DAILY","PERIOD"]
[342775414,1732140643927,-900.0,0.00052,53]
[342775415,1732140643937,-150.0,0.00052,102]
[342775416,1732140643948,-2550.35873887,0.000521,10]
[342775417,1732140643958,-500.0,0.000521,2]
[342775418,1732140643967,-322.18495802,0.00052269,11]
[342775419,1732140643977,-259.35490465,0.0005227,2]
[342775420,1732140643986,-194.318123,0.00052279,30]
[342775421,1732140643996,-2335.45865019,0.00052294,90]
[342775422,1732140644006,-2110.0,0.0005238,30]
[342775423,1732140644016,-250000.0,0.000524,120]
[342775424,1732140644025,-150.0,0.000525,120]
[342775425,1732140644034,-255.702247,0.000525,103]
[342775426,1732140644044,-2110.0,0.0005288,30]
[342775427,1732140644054,-50000.0,0.00053,53]
[342775428,1732140644063,-50000.0,0.00053,43]
[342775429,1732140644073,-50000.0,0.00053,33]
[342775430,1732140644082,-571.97314794,0.00053,2]
[342775431,1732140644092,-13551.0,0.00053,30]
[342775432,1732140644101,-150.0,0.00053,120]
[342775433,1732140644112,-255.16,0.00053,30]
[342775434,1732140644122,-1445.36,0.00053,30]
[342775435,1732140644132,-900.0,0.00053,54]
[342775436,1732140644141,-600.26,0.00053,30]
[342775437,1732140644152,-200.0,0.00053,120]
[342775438,1732140644162,-800.0,0.00053,2]
[342775439,1732140644171,-100000.0,0.000531,120]
[342775440,1732140644180,-271.205,0.0005327,120]
[342775441,1732140644192,-150.0,0.000533,14]
[342775442,1732140644203,-2464.34620178,0.000533,120]
[342775443,1732140644213,-443.37006481,0.0005331,2]
[342775444,1732140644222,-2110.0,0.0005338,30]
[342775445,1732140644231,-250000.0,0.000534,120]
[342775446,1732140644241,-181.112105,0.00053498,120]
[342775447,1732140644250,-204.0,0.0005361,30]
[342775448,1732140644260,-215.0,0.0005361,30]
[342775449,1732140644271,-2000.0,0.00053699,120]
[342775450,1732140644281,-197.2,0.00053756,2]
[342775451,1732140644290,-259.37,0.00053756,2]
[342775452,1732140644300,-2335.45865019,0.00053794,90]
[342775453,1732140644309,-586.372824,0.000538,120]
[342775454,1732140644319,-44510.18434455,0.000538,120]
[342775455,1732140644328,-1001.9,0.000538,120]
[342775456,1732140644338,-8020.70302556,0.0005388,120]
[342775457,1732140644348,-2677.568,0.0005388,90]
[342775458,1732140644358,-299999.99553868,0.0005388,30]
[342775459,1732140644369,-1500.0,0.0005388,120]
[342775460,1732140644379,-1500.0,0.0005388,120]
[342775461,1732140644389,-2110.0,0.0005388,30]
[342775462,1732140644398,-342.97,0.00053883,2]
[342775463,1732140644409,-24832.30535702,0.000539,120]
[342775464,1732140644418,-700.0,0.000539,19]
[342775465,1732140644428,-2000.0,0.00053973,120]
[342775466,1732140644438,-50000.0,0.00054,54]
[342775467,1732140644448,-50000.0,0.00054,34]
[342775468,1732140644458,-50000.0,0.00054,24]
[342775469,1732140644468,-42644.86697478,0.00054,30]
[342775470,1732140644478,-450.0,0.00054,120]
[342775471,1732140644488,-850.0,0.00054,120]
[342775472,1732140644498,-150.0,0.00054,120]
[342775473,1732140644507,-44000.0,0.00054,120]
[342775474,1732140644517,-900.0,0.00054,55]
[342775475,1732140644526,-17864.03464187,0.00054,120]
[342775476,1732140644536,-151.0,0.00054,120]
[342775477,1732140644546,-58000.0,0.00054,120]
[342775478,1732140644555,-252.86,0.00054,120]
[342775479,1732140644565,-252.86,0.00054,120]
[342775480,1732140644575,-252.86,0.00054,120]
[342775481,1732140644584,-252.86,0.00054,120]
[342775482,1732140644593,-252.86,0.00054,120]
[342775483,1732140644603,-252.86,0.00054,120]
[342775484,1732140644612,-252.86,0.00054,120]
[342775485,1732140644622,-252.86,0.00054,120]
[342775486,1732140644631,-252.86,0.00054,120]
[342775487,1732140644641,-252.86,0.00054,120]
[342775488,1732140644650,-252.86,0.00054,120]
[342775489,1732140644660,-252.86,0.00054,120]
[342775490,1732140644670,-252.86,0.00054,120]
[342775491,1732140644680,-252.86,0.00054,120]
[342775492,1732140644690,-252.86,0.00054,120]
[342775493,1732140644699,-252.86,0.00054,120]
[342775494,1732140644709,-252.86,0.00054,120]
[342775495,1732140644719,-252.86,0.00054,120]
[342775496,1732140644728,-252.86,0.00054,120]
[342775497,1732140644737,-252.86,0.00054,120]
[342775498,1732140644746,-252.86,0.00054,120]
[342775499,1732140644756,-252.86,0.00054,120]
[342775500,1732140644766,-252.86,0.00054,120]
[342775501,1732140644776,-252.86,0.00054,120]
[342775502,1732140644785,-252.86,0.00054,120]
[342775503,1732140644796,-252.86,0.00054,120]
[342775504,1732140644805,-252.86,0.00054,120]
[342775505,1732140644815,-252.86,0.00054,120]
[342775506,1732140644825,-252.86,0.00054,120]
[342775507,1732140644834,-252.86,0.00054,120]
[342775508,1732140644843,-252.86,0.00054,120]
[342775509,1732140644853,-252.86,0.00054,120]
[342775510,1732140644863,-252.86,0.00054,120]
[342775511,1732140644872,-252.86,0.00054,120]
[342775512,1732140644881,-252.86,0.00054,120]
[342775513,1732140644890,-252.86,0.00054,120]
[342775514,1732140644899,-252.86,0.00054,120]
[342775515,1732140644909,-252.86,0.00054,120]
[342775516,1732140644918,-252.86,0.00054,120]
[342775517,1732140644927,-252.86,0.00054,120]
[342775518,1732140644936,-252.86,0.00054,120]
[342775519,1732140644946,-252.86,0.00054,120]
[342775520,1732140644955,-252.86,0.00054,120]
[342775521,1732140644964,-252.86,0.00054,120]
[342775522,1732140644974,-252.86,0.00054,120]
[342775523,1732140644985,-252.86,0.00054,120]
[342775524,1732140644996,-252.86,0.00054,120]
[342775525,1732140645006,-252.86,0.00054,120]
[342775526,1732140645016,-252.86,0.00054,120]
[342775527,1732140645025,-252.86,0.00054,120]
[342775528,1732140645035,-252.86,0.00054,120]
[342775529,1732140645046,-252.86,0.00054,120]
[342775530,1732140645057,-252.86,0.00054,120]
[342775531,1732140645067,-252.86,0.00054,120]
[342775532,1732140645077,-252.86,0.00054,120]
[342775533,1732140645088,-252.86,0.00054,120]
[342775534,1732140645099,-252.86,0.00054,120]
[342775535,1732140645108,-252.86,0.00054,120]
[342775536,1732140645121,-252.86,0.00054,120]
[342775537,1732140645130,-252.86,0.00054,120]
[342775538,1732140645139,-252.86,0.00054,120]
[342775539,1732140645148,-252.86,0.00054,120]
[342775540,1732140645159,-252.86,0.00054,120]
[342775541,1732140645168,-3000.0,0.000542,2]
[342775542,1732140645179,-2000.0,0.00054247,120]
[342775543,1732140645191,-2110.0,0.0005438,30]
[342775544,1732140645201,-1054.0,0.00054474,30]
[342775545,1732140645211,-800.0,0.00054479,120]
[342775546,1732140645310,-214.112105,0.00054498,120]
[342775547,1732140645320,-6855.0,0.000545,120]
[342775548,1732140645329,-2000.0,0.00054521,120]
[342775549,1732140645339,-100000.0,0.00054565,30]
[342775550,1732140645349,-100000.0,0.000546,120]
[342775551,1732140645358,-250.570146,0.000546,30]
[342775552,1732140645368,-49000.0,0.000547,120]
[342775553,1732140645378,-5800.0,0.00054783,14]
[342775554,1732140645388,-5800.0,0.00054792,14]
[342775555,1732140645397,-500.0,0.00054794,7]
[342775556,1732140645407,-500.0,0.00054794,120]
[342775557,1732140645417,-500.24050426,0.00054794,120]
[342775558,1732140645426,-500.0,0.00054794,120]
[342775559,1732140645436,-500.0,0.00054794,120]
[342775560,1732140645445,-500.26071397,0.00054794,120]
[342775561,1732140645455,-500.0,0.00054794,30]
[342775562,1732140645465,-500.0,0.00054794,120]
[342775563,1732140645475,-151.0,0.00054794,7]
[342775564,1732140645484,-500.0,0.00054794,120]
[342775565,1732140645494,-500.0,0.00054794,120]
[342775566,1732140645504,-501.86235581,0.00054794,120]
[342775567,1732140645513,-242.67986024,0.00054794,120]
[342775568,1732140645523,-500.0,0.00054794,120]
[342775569,1732140645533,-500.0,0.00054794,120]
[342775570,1732140645542,-500.0,0.00054794,120]
[342775571,1732140645552,-501.60114064,0.00054794,120]
[342775572,1732140645561,-500.0,0.00054794,120]
[342775573,1732140645571,-500.0,0.00054794,120]
[342775574,1732140645581,-500.0,0.00054794,120]
[342775575,1732140645590,-500.0,0.00054794,120]
[342775576,1732140645600,-500.0,0.00054794,120]
[342775577,1732140645609,-500.0,0.00054794,120]
[342775578,1732140645620,-500.0,0.00054794,120]
[342775579,1732140645630,-500.0,0.00054794,120]
[342775580,1732140645640,-507.12300449,0.00054794,120]
[342775581,1732140645649,-223.38642985,0.00054794,120]
[342775582,1732140645659,-500.0,0.00054794,120]
[342775583,1732140645669,-500.0,0.00054794,120]
[342775584,1732140645679,-223.27385606,0.00054794,120]
[342775585,1732140645688,-512.19460372,0.00054794,120]
[342775586,1732140645698,-182.2504068,0.00054794,120]
[342775587,1732140645707,-500.0,0.00054794,120]
[342775588,1732140645716,-500.0,0.00054794,120]
[342775589,1732140645726,-500.0,0.00054794,120]
[342775591,1732140645735,-151.0,0.00054794,120]
[342775592,1732140645744,-513.92138151,0.00054794,120]
[342775593,1732140645754,-151.189423,0.00054794,120]
[342775594,1732140645763,-500.0,0.00054794,120]
[342775595,1732140645773,-307.45200748,0.00054794,120]
[342775596,1732140645783,-500.0,0.00054794,120]
[342775597,1732140645793,-501.37613969,0.00054794,120]
[342775598,1732140645802,-500.0,0.00054794,120]
[342775599,1732140645812,-511.28738653,0.00054794,120]
[342775600,1732140645821,-500.58702335,0.00054794,120]
[342775601,1732140645831,-500.0,0.00054794,120]
[342775602,1732140645840,-500.0,0.00054794,120]
[342775603,1732140645849,-500.0,0.00054794,120]
[342775604,1732140645858,-500.0,0.00054794,120]
[342775605,1732140645869,-500.0,0.00054794,120]
[342775606,1732140645879,-500.0,0.00054794,120]
[342775607,1732140645888,-500.0,0.00054794,120]
[342775608,1732140645897,-500.0,0.00054794,120]
[342775609,1732140645907,-500.0,0.00054794,120]
[342775610,1732140645916,-500.0,0.00054794,120]
[342775611,1732140645926,-500.0,0.00054794,120]
[342775612,1732140645936,-500.0,0.00054794,120]
[342775613,1732140645947,-500.0,0.00054794,120]
[342775614,1732140645957,-500.0,0.00054794,120]
[342775615,1732140645966,-500.0,0.00054794,120]
[342775616,1732140645976,-438.32466255,0.00054794,120]
[342775617,1732140645985,-500.0,0.00054794,120]
[342775618,1732140645995,-500.0,0.00054794,30]
[342775619,1732140646004,-500.0,0.00054794,120]
[342775620,1732140646014,-500.0,0.00054794,120]
[342775621,1732140646024,-500.0,0.00054794,120]
[342775622,1732140646034,-151.0,0.00054794,120]
[342775623,1732140646043,-500.0,0.00054794,120]
[342775624,1732140646052,-500.0,0.00054794,120]
[342775625,1732140646061,-500.0,0.00054794,120]
[342775626,1732140646071,-151.31095,0.00054794,120]
[342775627,1732140646081,-500.0,0.00054794,120]
[342775628,1732140646090,-500.0,0.00054794,120]
[342775629,1732140646100,-151.0,0.00054794,120]
[342775630,1732140646112,-1000.0,0.00054794,120]
[342775631,1732140646122,-500.0,0.00054794,120]
[342775632,1732140646132,-500.0,0.00054794,120]
[342775633,1732140646141,-218.073558,0.00054794,120]
[342775634,1732140646150,-151.0,0.00054794,120]
[342775635,1732140646160,-500.0,0.00054794,120]
[342775636,1732140646170,-500.0,0.00054794,120]
[342775637,1732140646180,-500.0,0.00054794,120]
[342775638,1732140646191,-500.0,0.00054794,120]
[342775639,1732140646200,-501.35820992,0.00054794,120]
[342775640,1732140646210,-151.0,0.00054794,120]
[342775641,1732140646220,-210.928221,0.00054794,120]
[342775642,1732140646229,-260.413462,0.00054794,120]
[342775643,1732140646239,-155.055593,0.00054794,120]
[342775644,1732140646248,-500.0,0.00054794,120]
[342775645,1732140646257,-500.0,0.00054794,120]
[342775646,1732140646268,-335.52504582,0.00054794,120]
[342775647,1732140646278,-789.82,0.00054794,120]
[342775648,1732140646287,-501.44250991,0.00054794,120]
[342775649,1732140646297,-369.40246597,0.00054794,120]
[342775650,1732140646306,-511.32697488,0.00054794,120]
[342775651,1732140646316,-502.79211512,0.00054794,120]
[342775652,1732140646326,-907.52,0.00054794,120]
[342775653,1732140646335,-210.56438646,0.00054794,120]
[342775654,1732140646344,-676.32,0.00054794,120]
[342775655,1732140646353,-500.0,0.00054794,120]
[342775656,1732140646362,-500.0,0.00054794,120]
[342775657,1732140646372,-690.77,0.00054794,120]
[342775659,1732140646381,-156.50380566,0.00054794,120]
[342775660,1732140646390,-500.0,0.00054794,120]
[342775661,1732140646400,-500.0,0.00054794,7]
[342775662,1732140646410,-500.0,0.00054794,120]
[342775663,1732140646419,-501.47566958,0.00054794,120]
[342775664,1732140646428,-500.0,0.00054794,120]
[342775665,1732140646438,-500.0,0.00054794,120]
[342775666,1732140646447,-500.0,0.00054794,120]
[342775667,1732140646457,-500.0,0.00054794,120]
[342775668,1732140646466,-500.0,0.00054794,120]
[342775669,1732140646476,-500.0,0.00054794,120]
[342775670,1732140646485,-500.0,0.00054794,120]
[342775671,1732140646494,-500.0,0.00054794,120]
[342775672,1732140646504,-500.0,0.00054794,120]
[342775673,1732140646513,-500.0,0.00054794,120]
[342775674,1732140646523,-500.0,0.00054794,120]
[342775675,1732140646532,-500.0,0.00054794,120]
[342775676,1732140646542,-500.0,0.00054794,120]
[342775677,1732140646551,-500.0,0.00054794,30]
[342775678,1732140646561,-500.0,0.00054794,120]
[342775679,1732140646571,-500.0,0.00054794,120]
[342775680,1732140646580,-500.0,0.00054794,120]
[342775681,1732140646590,-802.91,0.00054794,120]
[342775682,1732140646600,-500.0,0.00054794,120]
[342775683,1732140646609,-1078.99,0.00054794,120]
[342775684,1732140646621,-500.0,0.00054794,120]
[342775685,1732140646630,-151.0,0.00054794,120]
[342775686,1732140646640,-500.0,0.00054794,120]
[342775687,1732140646649,-1196.86,0.00054794,120]
[342775688,1732140646659,-500.0,0.00054794,120]
[342775689,1732140646668,-500.0,0.00054794,120]
[342775690,1732140646677,-1553.66,0.00054794,120]
[342775691,1732140646686,-500.0,0.00054794,120]
[342775692,1732140646696,-500.0,0.00054794,120]
[342775693,1732140646705,-500.0,0.00054794,120]
[342775694,1732140646715,-163.91631757,0.00054794,120]
[342775695,1732140646724,-286.33871518,0.00054794,5]
[342775696,1732140646734,-500.0,0.00054794,120]
[342775697,1732140646743,-1468.02,0.00054794,120]
[342775698,1732140646753,-612.54779813,0.00054794,120]
[342775699,1732140646762,-500.0,0.00054794,120]
[342775700,1732140646772,-500.0,0.00054794,120]
[342775701,1732140646781,-500.0,0.00054794,120]
[342775702,1732140646790,-500.0,0.00054794,120]
[342775703,1732140646800,-1204.33,0.00054794,120]
[342775704,1732140646809,-500.0,0.00054794,120]
[342775705,1732140646818,-500.0,0.00054794,120]
[342775706,1732140646827,-295.69382382,0.00054794,120]
[342775707,1732140646836,-689.54,0.00054794,120]
[342775708,1732140646846,-500.0,0.00054794,120]
[342775709,1732140646855,-500.0,0.00054794,120]
[342775710,1732140646865,-500.0,0.00054794,120]
[342775711,1732140646874,-500.0,0.00054794,120]
[342775712,1732140646884,-500.0,0.00054794,120]
[342775713,1732140646893,-151.0,0.00054794,120]
[342775714,1732140646902,-500.0,0.00054794,120]
[342775715,1732140646910,-500.0,0.00054794,120]
[342775716,1732140646920,-500.0,0.00054794,120]
[342775717,1732140646929,-500.0,0.00054794,120]
[342775718,1732140646939,-500.0,0.00054794,120]
[342775719,1732140646948,-500.0,0.00054794,120]
[342775720,1732140646958,-500.0,0.00054794,120]
[342775721,1732140646968,-500.0,0.00054794,7]
[342775722,1732140646977,-500.0,0.00054794,120]
[342775723,1732140646987,-3362.7,0.00054794,120]
[342775724,1732140646997,-500.0,0.00054794,120]
[342775725,1732140647006,-500.0,0.00054794,120]
[342775726,1732140647015,-500.0,0.00054794,120]
[342775727,1732140647024,-500.0,0.00054794,120]
[342775728,1732140647034,-150.0,0.00054794,120]
[342775729,1732140647045,-2907.27,0.00054794,120]
[342775730,1732140647063,-1034.08,0.00054794,120]
[342775731,1732140647082,-500.0,0.00054794,120]
[342775732,1732140647096,-500.0,0.00054794,120]
[342775733,1732140647105,-500.0,0.00054794,120]
[342775734,1732140647122,-500.0,0.00054794,120]
[342775735,1732140647132,-500.0,0.00054794,120]
[342775736,1732140647142,-500.0,0.00054794,120]
[342775737,1732140647151,-500.0,0.00054794,120]
[342775738,1732140647162,-500.0,0.00054794,120]
[342775739,1732140647171,-500.0,0.00054794,120]
[342775740,1732140647181,-500.0,0.00054794,120]
[342775741,1732140647191,-5000.0,0.00054794,120]
[342775742,1732140647200,-500.0,0.00054794,120]
[342775743,1732140647209,-500.0,0.00054794,120]
[342775744,1732140647219,-1141.42,0.00054794,120]
[342775745,1732140647228,-577.45,0.00054794,120]
[342775746,1732140647237,-691.51,0.00054794,120]
[342775747,1732140647248,-500.0,0.00054794,120]
[342775748,1732140647258,-500.0,0.00054794,120]
[342775749,1732140647267,-205.479005,0.00054794,120]
[342775750,1732140647276,-1067.52,0.00054794,120]
[342775751,1732140647286,-500.0,0.00054794,120]
[342775752,1732140647296,-500.0,0.00054794,120]
[342775753,1732140647307,-500.0,0.00054794,120]
[342775754,1732140647316,-500.0,0.00054794,120]
[342775755,1732140647326,-1047.06,0.00054794,120]
[342775756,1732140647335,-500.0,0.00054794,120]
[342775757,1732140647344,-500.0,0.00054794,2]
[342775758,1732140647354,-500.0,0.00054794,2]
[342775759,1732140647364,-500.0,0.00054794,2]
[342775760,1732140647374,-500.0,0.00054794,120]
[342775761,1732140647383,-500.0,0.00054794,2]
[342775762,1732140647392,-500.0,0.00054794,2]
[342775763,1732140647403,-500.0,0.00054794,2]
[342775764,1732140647412,-500.0,0.00054794,2]
[342775765,1732140647422,-151.399605,0.00054794,120]
[342775766,1732140647431,-500.0,0.00054794,2]
[342775767,1732140647440,-500.0,0.00054794,2]
[342775768,1732140647449,-500.0,0.00054794,2]
[342775769,1732140647459,-500.0,0.00054794,2]
[342775770,1732140647468,-500.0,0.00054794,2]
[342775771,1732140647479,-500.0,0.00054794,2]
[342775772,1732140647489,-280.91236082,0.00054794,2]
[342775773,1732140647505,-1588.94,0.00054794,120]
[342775774,1732140647515,-500.0,0.00054794,120]
[342775775,1732140647526,-646.74768428,0.00054794,120]
[342775776,1732140647535,-500.0,0.00054794,14]
[342775777,1732140647545,-500.0,0.00054794,120]
[342775778,1732140647554,-826.46,0.00054794,120]
[342775779,1732140647564,-500.0,0.00054794,120]
[342775780,1732140647573,-500.0,0.00054794,120]
[342775781,1732140647583,-283.318739,0.00054794,120]
[342775782,1732140647592,-500.0,0.00054794,120]
[342775783,1732140647602,-500.0,0.00054794,120]
[342775784,1732140647613,-500.0,0.00054794,120]
[342775785,1732140647623,-883.47,0.00054794,120]
[342775786,1732140647633,-500.0,0.00054794,120]
[342775787,1732140647643,-500.0,0.00054794,120]
[342775788,1732140647654,-500.0,0.00054794,120]
[342775789,1732140647663,-1125.72,0.00054794,120]
[342775790,1732140647673,-151.0,0.00054794,120]
[342775791,1732140647682,-500.0,0.00054794,120]
[342775792,1732140647691,-500.0,0.00054794,120]
[342775793,1732140647701,-500.0,0.00054794,120]
[342775794,1732140647710,-500.0,0.00054794,120]
[342775795,1732140647720,-1198.91,0.00054794,120]
[342775796,1732140647729,-1116.01,0.00054794,120]
[342775797,1732140647738,-500.0,0.00054794,120]
[342775798,1732140647748,-500.0,0.00054794,120]
[342775799,1732140647757,-500.0,0.00054794,120]
[342775800,1732140647767,-500.0,0.00054794,120]
[342775801,1732140647776,-500.0,0.00054794,120]
[342775802,1732140647786,-500.0,0.00054794,120]
[342775803,1732140647795,-500.0,0.00054794,120]
[342775804,1732140647805,-1410.51,0.00054794,120]
[342775805,1732140647816,-500.0,0.00054794,120]
[342775806,1732140647825,-500.0,0.00054794,120]
[342775807,1732140647835,-500.0,0.00054794,120]
[342775808,1732140647844,-500.0,0.00054794,120]
[342775809,1732140647853,-508.72,0.00054794,120]
[342775810,1732140647863,-500.0,0.00054794,120]
[342775811,1732140647872,-500.0,0.00054794,120]
[342775812,1732140647882,-500.0,0.00054794,120]
[342775813,1732140647892,-500.0,0.00054794,120]
[342775814,1732140647901,-501.02,0.00054794,120]
[342775815,1732140647911,-500.0,0.00054794,120]
[342775816,1732140647921,-151.0,0.00054794,120]
[342775817,1732140647930,-500.0,0.00054794,120]
[342775818,1732140647940,-854.5,0.00054794,120]
[342775819,1732140647950,-500.0,0.00054794,120]
[342775820,1732140647959,-500.0,0.00054794,120]
[342775821,1732140647968,-151.0,0.00054794,120]
[342775822,1732140647978,-500.0,0.00054794,120]
[342775823,1732140647988,-500.0,0.00054794,120]
[342775824,1732140647998,-923.86,0.00054794,120]
[342775825,1732140648008,-500.0,0.00054794,60]
[342775826,1732140648017,-500.62755938,0.00054794,120]
[342775827,1732140648027,-512.64801603,0.00054794,120]
[342775828,1732140648036,-1843.46,0.00054794,120]
[342775829,1732140648046,-151.0,0.00054794,120]
[342775830,1732140648055,-810.6,0.00054794,120]
[342775831,1732140648064,-500.0,0.00054794,120]
[342775832,1732140648078,-500.0,0.00054794,120]
[342775833,1732140648087,-500.0,0.00054794,120]
[342775834,1732140648097,-500.0,0.00054794,120]
[342775835,1732140648106,-500.0,0.00054794,120]
[342775836,1732140648121,-500.0,0.00054794,120]
[342775837,1732140648131,-909.22,0.00054794,120]
[342775838,1732140648140,-500.0,0.00054794,120]
[342775839,1732140648149,-500.85264664,0.00054794,120]
[342775840,1732140648159,-500.0,0.00054794,120]
[342775841,1732140648169,-500.0,0.00054794,120]
[342775842,1732140648178,-500.0,0.00054794,120]
[342775843,1732140648188,-533.52,0.00054794,120]
[342775844,1732140648197,-500.0,0.00054794,120]
[342775845,1732140648208,-500.0,0.00054794,120]
[342775846,1732140648217,-500.0,0.00054794,120]
[342775847,1732140648227,-2415.23,0.00054794,120]
[342775848,1732140648236,-500.0,0.00054794,120]
[342775849,1732140648246,-500.0,0.00054794,120]
[342775850,1732140648255,-500.0,0.00054794,120]
[342775851,1732140648264,-972.8,0.00054794,120]
[342775852,1732140648273,-500.0,0.00054794,120]
[342775853,1732140648282,-1624.46,0.00054794,120]
[342775854,1732140648291,-500.0,0.00054794,120]
[342775855,1732140648301,-500.0,0.00054794,120]
[342775856,1732140648310,-500.0,0.00054794,120]
[342775857,1732140648320,-500.0,0.00054794,120]
[342775858,1732140648329,-150.0,0.00054794,120]
[342775859,1732140648338,-500.0,0.00054794,120]
[342775860,1732140648347,-530.46,0.00054794,120]
[342775861,1732140648356,-500.0,0.00054794,120]
[342775862,1732140648366,-500.0,0.00054794,120]
[342775863,1732140648376,-500.0,0.00054794,120]
[342775864,1732140648386,-730.89,0.00054794,120]
[342775865,1732140648395,-500.0,0.00054794,120]
[342775866,1732140648405,-500.0,0.00054794,120]
[342775867,1732140648414,-500.0,0.00054794,120]
[342775868,1732140648423,-500.0,0.00054794,120]
[342775869,1732140648432,-500.0,0.00054794,120]
[342775870,1732140648441,-500.0,0.00054794,120]
[342775871,1732140648450,-500.0,0.00054794,60]
[342775872,1732140648459,-500.0,0.00054794,120]
[342775873,1732140648469,-500.0,0.00054794,120]
[342775874,1732140648483,-500.0,0.00054794,120]
[342775875,1732140648492,-500.0,0.00054794,120]
[342775876,1732140648502,-500.0,0.00054794,120]
[342775877,1732140648511,-500.0,0.00054794,120]
[342775878,1732140648520,-500.0,0.00054794,120]
[342775879,1732140648530,-500.0,0.00054794,120]
[342775880,1732140648539,-500.0,0.00054794,120]
[342775881,1732140648548,-151.0,0.00054794,120]
[342775882,1732140648560,-500.0,0.00054794,120]
[342775883,1732140648569,-500.60648818,0.00054794,120]
[342775884,1732140648579,-500.0,0.00054794,120]
[342775885,1732140648588,-500.0,0.00054794,120]
[342775886,1732140648597,-500.0,0.00054794,120]
[342775887,1732140648606,-500.0,0.00054794,120]
[342775888,1732140648616,-500.0,0.00054794,120]
[342775889,1732140648625,-500.0,0.00054794,120]
[342775890,1732140648635,-500.0,0.00054794,120]
[342775891,1732140648644,-615.39,0.00054794,120]
[342775892,1732140648655,-1000.0,0.00054794,2]
[342775893,1732140648664,-500.0,0.00054794,120]
[342775894,1732140648674,-425.08569984,0.00054794,120]
[342775895,1732140648683,-500.0,0.00054794,120]
[342775896,1732140648692,-500.39542934,0.00054794,120]
[342775897,1732140648701,-500.0,0.00054794,120]
[342775898,1732140648710,-500.0,0.00054794,120]
[342775899,1732140648719,-500.0,0.00054794,120]
[342775900,1732140648728,-500.0,0.00054794,120]
[342775901,1732140648738,-515.66,0.00054794,120]
[342775902,1732140648747,-500.0,0.00054794,120]
[342775903,1732140648756,-783.6,0.00054794,120]
[342775904,1732140648766,-500.0,0.00054794,120]
[342775905,1732140648775,-161.15093037,0.00054794,120]
[342775906,1732140648785,-1852.69,0.00054794,120]
[342775907,1732140648794,-500.0,0.00054794,120]
[342775908,1732140648803,-500.0,0.00054794,120]
[342775909,1732140648812,-713.08,0.00054794,120]
[342775910,1732140648821,-524.36,0.00054794,120]
[342775911,1732140648831,-500.0,0.00054794,120]
[342775912,1732140648839,-500.0,0.00054794,120]
[342775913,1732140648848,-500.0,0.00054794,120]
[342775914,1732140648858,-500.0,0.00054794,120]
[342775915,1732140648867,-500.0,0.00054794,120]